[Event "*** Titled Tuesday Blitz"]
[Site "Chess.com"]
[Date "2020.05.19"]
[Round "4"]
[White "dbrankovic68"]
[Black "PauloCesarCosta_sad"]
[Result "0-1"]
[WhiteElo "2338"]
[BlackElo "2211"]
[TimeControl "180+1"]
[EndTime "12:41:43 PDT"]
[Termination "PauloCesarCosta_sad won by resignation"]

1. e4 {[%clk 0:03:00.9]} 1... e6 {[%clk 0:03:00]} 2. d4 {[%clk 0:02:58.8]} 2...
d5 {[%clk 0:03:00.5]} 3. Nd2 {[%clk 0:02:59.3]} 3... Nf6 {[%clk 0:03:00.2]} 4.
e5 {[%clk 0:02:58.2]} 4... Nfd7 {[%clk 0:03:00.7]} 5. Bd3 {[%clk 0:02:58.7]}
5... c5 {[%clk 0:03:01.2]} 6. c3 {[%clk 0:02:59.3]} 6... Nc6 {[%clk 0:03:01.8]}
7. Ne2 {[%clk 0:02:59.8]} 7... Qb6 {[%clk 0:03:02.3]} 8. Nf3 {[%clk 0:02:59.4]}
8... cxd4 {[%clk 0:03:02.6]} 9. cxd4 {[%clk 0:02:59.9]} 9... f6 {[%clk
0:03:03.1]} 10. exf6 {[%clk 0:02:59.4]} 10... Nxf6 {[%clk 0:03:03.7]} 11. O-O
{[%clk 0:02:59.1]} 11... Bd6 {[%clk 0:03:03.8]} 12. Bf4 {[%clk 0:02:53.4]} 12...
Bxf4 {[%clk 0:03:03.7]} 13. Nxf4 {[%clk 0:02:53.4]} 13... Qxb2 {[%clk
0:03:04.3]} 14. Re1 {[%clk 0:02:48.9]} 14... O-O {[%clk 0:03:02.6]} 15. g3
{[%clk 0:02:46.6]} 15... Re8 {[%clk 0:02:05.5]} 16. Ne5 {[%clk 0:02:45.3]} 16...
Nxd4 {[%clk 0:01:58.5]} 17. Rb1 {[%clk 0:02:44.5]} 17... Qxa2 {[%clk 0:01:45.9]}
18. Bxh7+ {[%clk 0:02:43.4]} 18... Nxh7 {[%clk 0:01:37.9]} 19. Qxd4 {[%clk
0:02:43.7]} 19... Qc2 {[%clk 0:01:30.5]} 20. Nfd3 {[%clk 0:02:29.4]} 20... Qc7
{[%clk 0:01:22.9]} 21. Re3 {[%clk 0:02:12.6]} 21... a5 {[%clk 0:01:16.3]} 22. h4
{[%clk 0:02:09.3]} 22... a4 {[%clk 0:01:11.8]} 23. Rf3 {[%clk 0:02:06.6]} 23...
a3 {[%clk 0:01:05.8]} 24. Rf7 {[%clk 0:01:58.7]} 24... Re7 {[%clk 0:01:00]} 25.
Rxe7 {[%clk 0:01:31.8]} 25... Qxe7 {[%clk 0:00:59.8]} 26. Nb4 {[%clk 0:01:12.2]}
26... Nf6 {[%clk 0:00:59.5]} 27. f3 {[%clk 0:01:05.1]} 27... Qc7 {[%clk
0:00:51]} 28. Ra1 {[%clk 0:00:56.7]} 28... Nd7 {[%clk 0:00:43.8]} 29. Ned3
{[%clk 0:00:50.5]} 29... Qxg3+ {[%clk 0:00:35.3]} 30. Kf1 {[%clk 0:00:46.2]}
30... Qxf3+ {[%clk 0:00:35.6]} 31. Nf2 {[%clk 0:00:45.7]} 31... Ra4 {[%clk
0:00:26.2]} 32. Rc1 {[%clk 0:00:38.8]} 32... Ra8 {[%clk 0:00:17.3]} 33. Nd3
{[%clk 0:00:33.3]} 33... Qf6 {[%clk 0:00:07.8]} 34. Qxf6 {[%clk 0:00:18.7]}
34... Nxf6 {[%clk 0:00:07]} 35. Ra1 {[%clk 0:00:18.6]} 35... Bd7 {[%clk
0:00:06.7]} 36. Nc5 {[%clk 0:00:16.3]} 36... Bc8 {[%clk 0:00:04.8]} 37. Ke1
{[%clk 0:00:16.1]} 37... e5 {[%clk 0:00:04.4]} 38. Nfd3 {[%clk 0:00:15.9]} 38...
Ne4 {[%clk 0:00:03.7]} 39. Nxe4 {[%clk 0:00:12]} 39... dxe4 {[%clk 0:00:04]} 40.
Nc5 {[%clk 0:00:11]} 40... Bf5 {[%clk 0:00:03.8]} 41. Kd2 {[%clk 0:00:10.5]}
41... Rc8 {[%clk 0:00:03.2]} 42. Nb3 {[%clk 0:00:07.4]} 42... Ra8 {[%clk
0:00:02.8]} 43. Nc5 {[%clk 0:00:07.1]} 43... b5 {[%clk 0:00:03.1]} 44. Nb3
{[%clk 0:00:03.9]} 44... b4 {[%clk 0:00:03.4]} 45. Ke3 {[%clk 0:00:03.9]} 45...
Be6 {[%clk 0:00:03.4]} 46. Nc5 {[%clk 0:00:03.4]} 46... Bf7 {[%clk 0:00:03.8]}
47. Nxe4 {[%clk 0:00:02.2]} 47... b3 {[%clk 0:00:04.1]} 48. Nc3 {[%clk
0:00:02.7]} 48... b2 {[%clk 0:00:04.3]} 49. Rb1 {[%clk 0:00:03]} 49... a2 {[%clk
0:00:04.6]} 50. Nxa2 {[%clk 0:00:02.6]} 50... Rxa2 {[%clk 0:00:05.1]} 51. Ke4
{[%clk 0:00:02.8]} 51... Bb3 {[%clk 0:00:04.1]} 52. Kxe5 {[%clk 0:00:02.8]}
52... Bc2 {[%clk 0:00:04.4]} 53. Rf1 {[%clk 0:00:03.1]} 53... b1=Q {[%clk
0:00:03.9]} 54. Rxb1 {[%clk 0:00:03.7]} 54... Bxb1 {[%clk 0:00:04.2]} 55. h5
{[%clk 0:00:04.6]} 55... Rh2 {[%clk 0:00:04.2]} 56. h6 {[%clk 0:00:05.5]} 56...
Rxh6 {[%clk 0:00:04.2]} 57. Kf4 {[%clk 0:00:06.3]} 57... Ba2 {[%clk 0:00:04.5]}
58. Kg3 {[%clk 0:00:07]} 58... Bf7 {[%clk 0:00:04.9]} 59. Kf4 {[%clk 0:00:07.9]}
59... Ra6 {[%clk 0:00:05.5]} 60. Kg5 {[%clk 0:00:08.8]} 60... Kf8 {[%clk
0:00:06]} 0-1

[Event "*** Titled Tuesday Blitz"]
[Site "Chess.com"]
[Date "2020.05.19"]
[Round "4"]
[White "JLRHei"]
[Black "UCantHandleDenker"]
[Result "0-1"]
[WhiteElo "2333"]
[BlackElo "2570"]
[TimeControl "180+1"]
[EndTime "12:41:44 PDT"]
[Termination "UCantHandleDenker won by resignation"]

1. d4 {[%clk 0:03:00.9]} 1... Nf6 {[%clk 0:02:57.6]} 2. c4 {[%clk 0:03:01.3]}
2... g6 {[%clk 0:02:57.1]} 3. Nf3 {[%clk 0:03:01.9]} 3... Bg7 {[%clk 0:02:56.7]}
4. g3 {[%clk 0:03:02.5]} 4... O-O {[%clk 0:02:56.2]} 5. Bg2 {[%clk 0:03:03.2]}
5... d6 {[%clk 0:02:56.9]} 6. O-O {[%clk 0:03:03.7]} 6... Nc6 {[%clk 0:02:56.1]}
7. Nc3 {[%clk 0:03:04.2]} 7... e5 {[%clk 0:02:55.6]} 8. d5 {[%clk 0:03:04.1]}
8... Ne7 {[%clk 0:02:55.3]} 9. e4 {[%clk 0:03:04.5]} 9... Nd7 {[%clk 0:02:55]}
10. Ne1 {[%clk 0:03:02.9]} 10... h6 {[%clk 0:02:54.2]} 11. Nd3 {[%clk 0:03:03]}
11... f5 {[%clk 0:02:51.6]} 12. f4 {[%clk 0:03:03.2]} 12... fxe4 {[%clk
0:02:49.3]} 13. Nxe4 {[%clk 0:03:03.1]} 13... Nf5 {[%clk 0:02:49.5]} 14. Kh1
{[%clk 0:02:45.4]} 14... a5 {[%clk 0:02:45.8]} 15. Bd2 {[%clk 0:02:37.4]} 15...
b6 {[%clk 0:02:45.2]} 16. Bc3 {[%clk 0:02:35.8]} 16... Qe7 {[%clk 0:02:38.2]}
17. Qd2 {[%clk 0:02:29.6]} 17... exf4 {[%clk 0:02:13.5]} 18. Bxg7 {[%clk
0:02:22]} 18... Qxg7 {[%clk 0:02:10.4]} 19. Nxf4 {[%clk 0:02:22.3]} 19... Ne5
{[%clk 0:02:07.5]} 20. b3 {[%clk 0:02:10.8]} 20... Bd7 {[%clk 0:02:06.4]} 21.
Rae1 {[%clk 0:02:06.1]} 21... Rae8 {[%clk 0:02:05.7]} 22. Re2 {[%clk 0:01:41.4]}
22... Kh8 {[%clk 0:01:59.7]} 23. Rfe1 {[%clk 0:01:41.7]} 23... a4 {[%clk
0:01:32.5]} 24. Nf2 {[%clk 0:01:35.9]} 24... axb3 {[%clk 0:01:31.7]} 25. axb3
{[%clk 0:01:36.8]} 25... g5 {[%clk 0:01:25.8]} 26. Ne6 {[%clk 0:01:18.1]} 26...
Bxe6 {[%clk 0:01:23.2]} 27. dxe6 {[%clk 0:01:19]} 27... Rxe6 {[%clk 0:01:20.6]}
28. Bd5 {[%clk 0:01:09.2]} 28... Re7 {[%clk 0:01:01]} 29. Ne4 {[%clk 0:01:05.2]}
29... Ng4 {[%clk 0:00:53.7]} 30. h3 {[%clk 0:00:59.6]} 30... Rxe4 {[%clk
0:00:46.6]} 31. Bxe4 {[%clk 0:00:20.9]} 31... Nxg3+ {[%clk 0:00:45.9]} 32. Kg1
{[%clk 0:00:20.5]} 32... Nxe2+ {[%clk 0:00:45.4]} 33. Rxe2 {[%clk 0:00:19]}
33... Ne5 {[%clk 0:00:43.6]} 34. Rf2 {[%clk 0:00:14.6]} 34... Rxf2 {[%clk
0:00:37.8]} 35. Qxf2 {[%clk 0:00:15.5]} 35... Qf7 {[%clk 0:00:38.4]} 36. Qe2
{[%clk 0:00:13.7]} 36... Qf4 {[%clk 0:00:37.4]} 37. Kg2 {[%clk 0:00:08.2]} 37...
Kg7 {[%clk 0:00:34.5]} 38. Bb1 {[%clk 0:00:03.8]} 38... g4 {[%clk 0:00:16.5]}
39. Qc2 {[%clk 0:00:03.3]} 39... Qf3+ {[%clk 0:00:15.4]} 40. Kg1 {[%clk
0:00:03.4]} 40... Qg3+ {[%clk 0:00:14.5]} 41. Kh1 {[%clk 0:00:02.4]} 41... Qxh3+
{[%clk 0:00:14.1]} 42. Kg1 {[%clk 0:00:02.8]} 42... Nf3+ {[%clk 0:00:13.7]} 43.
Kf2 {[%clk 0:00:03.3]} 43... Qh2+ {[%clk 0:00:13.6]} 44. Ke3 {[%clk 0:00:04.2]}
44... Qxc2 {[%clk 0:00:13.9]} 45. Bxc2 {[%clk 0:00:05.1]} 45... Ne5 {[%clk
0:00:14.2]} 46. Kf4 {[%clk 0:00:05]} 46... Kf6 {[%clk 0:00:13.8]} 47. Bd1 {[%clk
0:00:04.8]} 47... h5 {[%clk 0:00:13.8]} 48. Be2 {[%clk 0:00:05.5]} 48... Ng6+
{[%clk 0:00:12.7]} 49. Ke4 {[%clk 0:00:05.5]} 49... Ne7 {[%clk 0:00:12.8]} 50.
Kf4 {[%clk 0:00:05.7]} 50... Ng6+ {[%clk 0:00:12.8]} 51. Ke4 {[%clk 0:00:06.2]}
51... Kg5 {[%clk 0:00:13.2]} 52. b4 {[%clk 0:00:05.9]} 52... Ne5 {[%clk
0:00:13.1]} 53. Kd5 {[%clk 0:00:05.5]} 53... g3 {[%clk 0:00:12.1]} 54. c5 {[%clk
0:00:06.4]} 54... bxc5 {[%clk 0:00:11.5]} 55. Bf1 {[%clk 0:00:06.1]} 55... cxb4
{[%clk 0:00:11.3]} 0-1

[Event "*** Titled Tuesday Blitz"]
[Site "Chess.com"]
[Date "2020.05.19"]
[Round "4"]
[White "rakshi2005"]
[Black "OhanyanEminChess"]
[Result "0-1"]
[WhiteElo "2274"]
[BlackElo "2451"]
[TimeControl "180+1"]
[EndTime "12:41:45 PDT"]
[Termination "OhanyanEminChess won on time"]

1. e4 {[%clk 0:03:00.9]} 1... e5 {[%clk 0:02:51]} 2. Nf3 {[%clk 0:03:00.4]} 2...
Nc6 {[%clk 0:02:50.3]} 3. Bc4 {[%clk 0:03:00.4]} 3... Nf6 {[%clk 0:02:47.9]} 4.
d4 {[%clk 0:02:58.7]} 4... exd4 {[%clk 0:02:47.9]} 5. O-O {[%clk 0:02:56.4]}
5... Nxe4 {[%clk 0:02:46.1]} 6. Re1 {[%clk 0:02:56.1]} 6... d5 {[%clk
0:02:46.5]} 7. Bxd5 {[%clk 0:02:56.5]} 7... Qxd5 {[%clk 0:02:47.4]} 8. Nc3
{[%clk 0:02:57]} 8... Qa5 {[%clk 0:02:47.7]} 9. Nxe4 {[%clk 0:02:57.4]} 9... Be6
{[%clk 0:02:46.2]} 10. Neg5 {[%clk 0:02:56.8]} 10... O-O-O {[%clk 0:02:45.8]}
11. Nxe6 {[%clk 0:02:55.3]} 11... fxe6 {[%clk 0:02:46.7]} 12. Rxe6 {[%clk
0:02:54.4]} 12... Bd6 {[%clk 0:02:47]} 13. Qe1 {[%clk 0:02:51.7]} 13... Qh5
{[%clk 0:02:40.3]} 14. Bg5 {[%clk 0:02:47.4]} 14... Rde8 {[%clk 0:02:39.2]} 15.
Qe4 {[%clk 0:02:44.8]} 15... h6 {[%clk 0:02:31.9]} 16. Bd2 {[%clk 0:02:31.4]}
16... Rxe6 {[%clk 0:02:25.2]} 17. Qxe6+ {[%clk 0:02:26.1]} 17... Kd8 {[%clk
0:02:25.6]} 18. Re1 {[%clk 0:02:23.1]} 18... Re8 {[%clk 0:02:24.5]} 19. Qxe8+
{[%clk 0:02:22.6]} 19... Qxe8 {[%clk 0:02:25.4]} 20. Rxe8+ {[%clk 0:02:23.4]}
20... Kxe8 {[%clk 0:02:26.3]} 21. Kf1 {[%clk 0:02:23.5]} 21... Kd7 {[%clk
0:02:26]} 22. Ke2 {[%clk 0:02:23.8]} 22... Ke6 {[%clk 0:02:26.1]} 23. Kd3 {[%clk
0:02:23.9]} 23... Kd5 {[%clk 0:02:26.7]} 24. Nxd4 {[%clk 0:02:21.5]} 24... Nxd4
{[%clk 0:02:10.8]} 25. c4+ {[%clk 0:02:21.1]} 25... Ke6 {[%clk 0:02:11.4]} 26.
Kxd4 {[%clk 0:02:20.5]} 26... Bxh2 {[%clk 0:02:10.9]} 27. g3 {[%clk 0:02:19.7]}
27... Kf5 {[%clk 0:02:01.5]} 28. Ke3 {[%clk 0:02:10.1]} 28... Kg4 {[%clk
0:02:00.2]} 29. Ke2 {[%clk 0:01:59.6]} 29... h5 {[%clk 0:01:50.3]} 30. Be1
{[%clk 0:01:37.1]} 30... g5 {[%clk 0:01:19]} 31. Kf1 {[%clk 0:01:12.3]} 31...
Kf3 {[%clk 0:01:16.7]} 32. Bd2 {[%clk 0:01:04.5]} 32... h4 {[%clk 0:01:16.3]}
33. Bxg5 {[%clk 0:01:03]} 33... hxg3 {[%clk 0:01:15.6]} 34. fxg3 {[%clk
0:01:02.6]} 34... Bxg3 {[%clk 0:01:15.9]} 35. b3 {[%clk 0:00:57]} 35... c6
{[%clk 0:00:57.2]} 36. Bf6 {[%clk 0:00:55]} 36... Ke3 {[%clk 0:00:55.3]} 37. Kg2
{[%clk 0:00:51.3]} 37... Bc7 {[%clk 0:00:47.4]} 38. Bg7 {[%clk 0:00:48.4]} 38...
Kd3 {[%clk 0:00:46.9]} 39. Kf3 {[%clk 0:00:48.1]} 39... Kc2 {[%clk 0:00:38]} 40.
Ke2 {[%clk 0:00:44.9]} 40... Kb1 {[%clk 0:00:36.5]} 41. a4 {[%clk 0:00:43.3]}
41... Kc2 {[%clk 0:00:36]} 42. b4 {[%clk 0:00:42.1]} 42... Kb3 {[%clk
0:00:35.8]} 43. b5 {[%clk 0:00:42.1]} 43... Kxc4 {[%clk 0:00:31.9]} 44. bxc6
{[%clk 0:00:41.9]} 44... bxc6 {[%clk 0:00:32.8]} 45. Ke3 {[%clk 0:00:29.6]}
45... Kb4 {[%clk 0:00:28.7]} 46. Kd4 {[%clk 0:00:28.4]} 46... Bb6+ {[%clk
0:00:28.3]} 47. Ke5 {[%clk 0:00:24.4]} 47... Kxa4 {[%clk 0:00:29.2]} 48. Kd6
{[%clk 0:00:24.2]} 48... c5 {[%clk 0:00:27.3]} 49. Kd5 {[%clk 0:00:19.2]} 49...
Kb3 {[%clk 0:00:27.1]} 50. Ke4 {[%clk 0:00:09]} 50... c4 {[%clk 0:00:28]} 51.
Kf3 {[%clk 0:00:07.9]} 51... c3 {[%clk 0:00:26.8]} 52. Ke2 {[%clk 0:00:08.8]}
52... c2 {[%clk 0:00:26.2]} 53. Bh6 {[%clk 0:00:08.3]} 53... Kb2 {[%clk
0:00:26.2]} 54. Kd3 {[%clk 0:00:08.4]} 54... a5 {[%clk 0:00:23.5]} 55. Bd2
{[%clk 0:00:07.4]} 55... a4 {[%clk 0:00:23]} 56. Bc3+ {[%clk 0:00:07.6]} 56...
Kb1 {[%clk 0:00:19.6]} 57. Bd2 {[%clk 0:00:07.5]} 57... a3 {[%clk 0:00:19.7]}
58. Kc3 {[%clk 0:00:04.4]} 58... a2 {[%clk 0:00:19.9]} 59. Kb3 {[%clk
0:00:01.7]} 59... a1=Q {[%clk 0:00:20.8]} 60. Bc3 {[%clk 0:00:01.6]} 60... Qa2+
{[%clk 0:00:21.7]} 61. Kb4 {[%clk 0:00:01.2]} 61... c1=Q {[%clk 0:00:22.6]} 0-1

[Event "*** Titled Tuesday Blitz"]
[Site "Chess.com"]
[Date "2020.05.19"]
[Round "4"]
[White "Firouzja2003"]
[Black "bakki78"]
[Result "1-0"]
[WhiteElo "3173"]
[BlackElo "2750"]
[TimeControl "180+1"]
[EndTime "12:41:47 PDT"]
[Termination "Firouzja2003 won by resignation"]

1. e4 {[%clk 0:03:00.9]} 1... c5 {[%clk 0:02:59.1]} 2. Nf3 {[%clk 0:02:59.9]}
2... Nc6 {[%clk 0:02:59]} 3. Nc3 {[%clk 0:02:58.1]} 3... d6 {[%clk 0:02:57.6]}
4. d4 {[%clk 0:02:57.7]} 4... cxd4 {[%clk 0:02:57.7]} 5. Nxd4 {[%clk 0:02:58.6]}
5... Nf6 {[%clk 0:02:57.9]} 6. Bg5 {[%clk 0:02:56.8]} 6... e6 {[%clk 0:02:58]}
7. Qd2 {[%clk 0:02:57.2]} 7... a6 {[%clk 0:02:58.2]} 8. O-O-O {[%clk 0:02:57.4]}
8... Bd7 {[%clk 0:02:58.4]} 9. f3 {[%clk 0:02:58.1]} 9... h6 {[%clk 0:02:54.1]}
10. Be3 {[%clk 0:02:57.8]} 10... b5 {[%clk 0:02:54.2]} 11. Nxc6 {[%clk
0:02:54.7]} 11... Bxc6 {[%clk 0:02:53.9]} 12. Ne2 {[%clk 0:02:55.6]} 12... Qc7
{[%clk 0:02:48.9]} 13. Nd4 {[%clk 0:02:54.8]} 13... Bb7 {[%clk 0:02:49]} 14. Kb1
{[%clk 0:02:54.4]} 14... Rd8 {[%clk 0:02:44.7]} 15. g4 {[%clk 0:02:53]} 15... e5
{[%clk 0:02:41.5]} 16. Nf5 {[%clk 0:02:47]} 16... d5 {[%clk 0:02:39.4]} 17. exd5
{[%clk 0:02:11.9]} 17... Nxd5 {[%clk 0:02:36.5]} 18. Bd3 {[%clk 0:02:07.2]}
18... g6 {[%clk 0:02:08.6]} 19. Ng3 {[%clk 0:02:06.8]} 19... Nb4 {[%clk
0:02:02.3]} 20. Ne4 {[%clk 0:02:02.4]} 20... Be7 {[%clk 0:01:53.2]} 21. Qf2
{[%clk 0:01:57.6]} 21... Nd5 {[%clk 0:01:49.7]} 22. Bd2 {[%clk 0:01:51.4]} 22...
Nf4 {[%clk 0:01:48.5]} 23. Bxf4 {[%clk 0:01:46.3]} 23... exf4 {[%clk 0:01:48.2]}
24. h4 {[%clk 0:01:47]} 24... O-O {[%clk 0:01:47.6]} 25. h5 {[%clk 0:01:45.1]}
25... g5 {[%clk 0:01:46.9]} 26. Rhe1 {[%clk 0:01:42.9]} 26... Bxe4 {[%clk
0:01:40.2]} 27. Rxe4 {[%clk 0:01:39.5]} 27... Bf6 {[%clk 0:01:40.5]} 28. Qe2
{[%clk 0:01:36.3]} 28... Qc5 {[%clk 0:01:28.2]} 29. a3 {[%clk 0:01:30.3]} 29...
a5 {[%clk 0:01:25.7]} 30. c3 {[%clk 0:01:26.9]} 30... Rb8 {[%clk 0:01:22.7]} 31.
Bc2 {[%clk 0:01:17.4]} 31... b4 {[%clk 0:00:55.3]} 32. Rc4 {[%clk 0:01:12.7]}
32... Qe3 {[%clk 0:00:54.2]} 33. Qxe3 {[%clk 0:01:00.5]} 33... fxe3 {[%clk
0:00:54.3]} 34. cxb4 {[%clk 0:01:00.9]} 34... axb4 {[%clk 0:00:54.1]} 35. axb4
{[%clk 0:00:59.2]} 35... Rfe8 {[%clk 0:00:48.4]} 36. Be4 {[%clk 0:00:45.2]}
36... Be5 {[%clk 0:00:43.2]} 37. Re1 {[%clk 0:00:39.6]} 37... Bf4 {[%clk
0:00:43]} 38. b5 {[%clk 0:00:38]} 38... Red8 {[%clk 0:00:40.1]} 39. Rb4 {[%clk
0:00:33.1]} 39... Rb6 {[%clk 0:00:38]} 40. Re2 {[%clk 0:00:27.2]} 40... Rdb8
{[%clk 0:00:30.1]} 41. Bd3 {[%clk 0:00:24.1]} 41... Rc8 {[%clk 0:00:29.6]} 42.
Rc2 {[%clk 0:00:22.5]} 42... Rd8 {[%clk 0:00:25.8]} 43. Be2 {[%clk 0:00:19.1]}
43... Rd2 {[%clk 0:00:23.6]} 44. Rxd2 {[%clk 0:00:12]} 44... exd2 {[%clk
0:00:23.7]} 45. Kc2 {[%clk 0:00:12.6]} 45... Kf8 {[%clk 0:00:23.8]} 46. Rd4
{[%clk 0:00:09]} 46... Ke7 {[%clk 0:00:23.2]} 47. Kb3 {[%clk 0:00:07]} 47... Rd6
{[%clk 0:00:22.9]} 48. Kc4 {[%clk 0:00:04.7]} 48... Rxd4+ {[%clk 0:00:21.7]} 49.
Kxd4 {[%clk 0:00:05.6]} 49... Kd6 {[%clk 0:00:20]} 50. b3 {[%clk 0:00:04.8]}
50... f6 {[%clk 0:00:18.7]} 51. Ke4 {[%clk 0:00:02.4]} 51... Ke6 {[%clk
0:00:18.8]} 52. b4 {[%clk 0:00:01.5]} 52... Be5 {[%clk 0:00:17.4]} 53. Bd1
{[%clk 0:00:02]} 53... Bf4 {[%clk 0:00:17.3]} 54. Bb3+ {[%clk 0:00:02.4]} 54...
Ke7 {[%clk 0:00:17.4]} 55. Kf5 {[%clk 0:00:02.8]} 55... Be3 {[%clk 0:00:17]} 56.
Kg6 {[%clk 0:00:02.8]} 56... Bd4 {[%clk 0:00:13.4]} 57. Kxh6 {[%clk 0:00:03.2]}
57... f5 {[%clk 0:00:13.4]} 58. Kxg5 {[%clk 0:00:03.1]} 58... fxg4 {[%clk
0:00:13.7]} 59. Kxg4 {[%clk 0:00:04]} 59... Be3 {[%clk 0:00:13.5]} 60. Kf5
{[%clk 0:00:04.2]} 60... Bh6 {[%clk 0:00:12.4]} 61. Bd1 {[%clk 0:00:04.6]} 61...
Be3 {[%clk 0:00:12.7]} 62. Kg6 {[%clk 0:00:04.7]} 62... Kf8 {[%clk 0:00:12.7]}
63. h6 {[%clk 0:00:05.1]} 63... Bd4 {[%clk 0:00:13]} 64. h7 {[%clk 0:00:06]}
64... Ke7 {[%clk 0:00:13.3]} 65. f4 {[%clk 0:00:06.5]} 65... Bc3 {[%clk
0:00:13.4]} 66. f5 {[%clk 0:00:07.4]} 66... Bd4 {[%clk 0:00:13.7]} 67. b6 {[%clk
0:00:07.9]} 1-0

[Event "*** Titled Tuesday Blitz"]
[Site "Chess.com"]
[Date "2020.05.19"]
[Round "4"]
[White "124chess"]
[Black "MPGM"]
[Result "0-1"]
[WhiteElo "2749"]
[BlackElo "2525"]
[TimeControl "180+1"]
[EndTime "12:41:47 PDT"]
[Termination "MPGM won on time"]

1. d4 {[%clk 0:03:00.9]} 1... d5 {[%clk 0:02:57.9]} 2. Nf3 {[%clk 0:02:59.8]}
2... e6 {[%clk 0:02:58.1]} 3. Bf4 {[%clk 0:02:59.3]} 3... Bd6 {[%clk 0:02:55.1]}
4. Bg3 {[%clk 0:02:59.3]} 4... Nf6 {[%clk 0:02:53.5]} 5. e3 {[%clk 0:02:59.2]}
5... O-O {[%clk 0:02:52.8]} 6. Nbd2 {[%clk 0:02:57.6]} 6... c5 {[%clk
0:02:53.3]} 7. c3 {[%clk 0:02:57.8]} 7... Qc7 {[%clk 0:02:53.1]} 8. Rc1 {[%clk
0:02:57.1]} 8... Nbd7 {[%clk 0:02:53.1]} 9. c4 {[%clk 0:02:57.1]} 9... b6 {[%clk
0:02:35.5]} 10. cxd5 {[%clk 0:02:52.8]} 10... exd5 {[%clk 0:02:33.7]} 11. Bd3
{[%clk 0:02:48.5]} 11... c4 {[%clk 0:02:26.1]} 12. Bb1 {[%clk 0:02:43.9]} 12...
Re8 {[%clk 0:02:25.3]} 13. O-O {[%clk 0:02:43.6]} 13... Nf8 {[%clk 0:02:22.2]}
14. Ne5 {[%clk 0:02:34.2]} 14... Ng6 {[%clk 0:02:21.8]} 15. f4 {[%clk 0:02:27]}
15... b5 {[%clk 0:02:18.6]} 16. h4 {[%clk 0:01:55.7]} 16... h5 {[%clk
0:01:45.9]} 17. Ndf3 {[%clk 0:01:30.7]} 17... Ne4 {[%clk 0:01:24]} 18. Be1
{[%clk 0:01:27.3]} 18... Bxe5 {[%clk 0:01:15.5]} 19. dxe5 {[%clk 0:01:06.3]}
19... Qc5 {[%clk 0:01:15.3]} 20. Qd4 {[%clk 0:00:38.5]} 20... Bg4 {[%clk
0:01:11.9]} 21. Bxe4 {[%clk 0:00:33.9]} 21... Qxd4 {[%clk 0:01:11.8]} 22. Nxd4
{[%clk 0:00:32.1]} 22... dxe4 {[%clk 0:01:12.7]} 23. Nxb5 {[%clk 0:00:24.2]}
23... Red8 {[%clk 0:00:59.5]} 24. Nd6 {[%clk 0:00:23.2]} 24... f6 {[%clk
0:00:56.5]} 25. Bc3 {[%clk 0:00:22.8]} 25... fxe5 {[%clk 0:00:56.1]} 26. fxe5
{[%clk 0:00:23.7]} 26... Nxh4 {[%clk 0:00:52.4]} 27. Rf4 {[%clk 0:00:23.3]}
27... Ng6 {[%clk 0:00:51.3]} 28. Rxe4 {[%clk 0:00:23.4]} 28... Rd7 {[%clk
0:00:34.2]} 29. Rxc4 {[%clk 0:00:22.7]} 29... Be6 {[%clk 0:00:31.4]} 30. Rc5
{[%clk 0:00:21.4]} 30... Bxa2 {[%clk 0:00:31.1]} 31. b4 {[%clk 0:00:19.6]} 31...
a6 {[%clk 0:00:22.3]} 32. Bd4 {[%clk 0:00:19.7]} 32... Nf8 {[%clk 0:00:19.3]}
33. Rc7 {[%clk 0:00:17.5]} 33... Be6 {[%clk 0:00:16.2]} 34. Rc8 {[%clk
0:00:11.2]} 34... Rxc8 {[%clk 0:00:14.4]} 35. Nxc8 {[%clk 0:00:06.9]} 35... Rb7
{[%clk 0:00:11.5]} 36. Nd6 {[%clk 0:00:05.3]} 36... Rxb4 {[%clk 0:00:10.8]} 37.
Rc7 {[%clk 0:00:06]} 37... Nd7 {[%clk 0:00:07.3]} 38. Ra7 {[%clk 0:00:06.1]}
38... Ra4 {[%clk 0:00:07.1]} 39. g3 {[%clk 0:00:05.9]} 39... Ra5 {[%clk
0:00:06.5]} 40. Kf2 {[%clk 0:00:06.2]} 40... Nxe5 {[%clk 0:00:06.7]} 41. Ke2
{[%clk 0:00:04.5]} 41... Ra2+ {[%clk 0:00:06.2]} 42. Kd1 {[%clk 0:00:04.4]}
42... Bb3+ {[%clk 0:00:05.7]} 43. Kc1 {[%clk 0:00:03.9]} 43... Nd3+ {[%clk
0:00:05.7]} 44. Kb1 {[%clk 0:00:04.1]} 44... Re2 {[%clk 0:00:02.8]} 45. Rxg7+
{[%clk 0:00:03.8]} 45... Kf8 {[%clk 0:00:03.1]} 46. Bc3 {[%clk 0:00:02.4]} 46...
Ba2+ {[%clk 0:00:01.8]} 47. Ka1 {[%clk 0:00:02.3]} 47... Bb3 {[%clk 0:00:02.4]}
48. Rg5 {[%clk 0:00:02.8]} 48... Rc2 {[%clk 0:00:02.4]} 49. Bg7+ {[%clk
0:00:01.8]} 49... Ke7 {[%clk 0:00:02.5]} 50. Nf5+ {[%clk 0:00:01.2]} 50... Kf7
{[%clk 0:00:02.9]} 51. Bb2 {[%clk 0:00:01.7]} 51... Rxb2 {[%clk 0:00:02.7]} 52.
Nd6+ {[%clk 0:00:01.9]} 52... Ke6 {[%clk 0:00:02.7]} 53. Ne4 {[%clk 0:00:01.9]}
53... Ra2+ {[%clk 0:00:02.8]} 54. Kb1 {[%clk 0:00:01.9]} 54... Rb2+ {[%clk
0:00:03.7]} 55. Ka1 {[%clk 0:00:02.4]} 55... Rc2 {[%clk 0:00:03.4]} 56. Rg6+
{[%clk 0:00:01.9]} 56... Ke5 {[%clk 0:00:03.4]} 0-1